[Event "Titled Tuesday Blitz November 29 Late 2022"]
[White "Zajic, Milan"]
[Black "Gasparyan, David"]
[WhiteFideId "912336"]
[BlackFideId "13311980"]
[WhiteElo "2445"]
[BlackElo "2369"]
[Result "1-0"]
[Round "05"]
[TimeControl "180+1"]
[Date "2022.11.30"]
[WhiteClock "0:00:56"]
[BlackClock "0:00:10"]

1. e4 {[%clk 0:02:53]}  c5 {[%clk 0:02:55]} 2. Nf3 {[%clk 0:02:53]}  g6 {[%clk 0:02:49]} 3. d4 {[%clk 0:02:52]}  cxd4 {[%clk 0:02:50]} 4. Nxd4 {[%clk 0:02:52]}  Bg7 {[%clk 0:02:49]} 5. c4 {[%clk 0:02:53]}  Nc6 {[%clk 0:02:46]} 6. Be3 {[%clk 0:02:53]}  Nf6 {[%clk 0:02:44]} 7. Nc3 {[%clk 0:02:53]}  O-O {[%clk 0:02:43]} 8. Be2 {[%clk 0:02:53]}  d6 {[%clk 0:02:36]} 9. O-O {[%clk 0:02:52]}  Bd7 {[%clk 0:02:36]} 10. Qd2 {[%clk 0:02:52]}  Nxd4 {[%clk 0:02:34]} 11. Bxd4 {[%clk 0:02:53]}  Bc6 {[%clk 0:02:35]} 12. f3 {[%clk 0:02:53]}  a5 {[%clk 0:02:34]} 13. b3 {[%clk 0:02:53]}  Nd7 {[%clk 0:02:33]} 14. Be3 {[%clk 0:02:52]}  Nc5 {[%clk 0:02:33]} 15. Rab1 {[%clk 0:02:52]}  Qb6 {[%clk 0:02:31]} 16. Rfc1 {[%clk 0:02:52]}  Rfc8 {[%clk 0:02:30]} 17. Bf1 {[%clk 0:02:45]}  Qd8 {[%clk 0:02:27]} 18. Rc2 {[%clk 0:02:21]}  h5 {[%clk 0:02:18]} 19. a3 {[%clk 0:02:20]}  Kh7 {[%clk 0:02:17]} 20. Ne2 {[%clk 0:02:20]}  Qh8 {[%clk 0:02:11]} 21. b4 {[%clk 0:02:17]}  axb4 {[%clk 0:02:10]} 22. axb4 {[%clk 0:02:18]}  Na4 {[%clk 0:02:08]} 23. Nd4 {[%clk 0:02:18]}  Bd7 {[%clk 0:02:03]} 24. h3 {[%clk 0:02:17]}  Nb6 {[%clk 0:01:50]} 25. c5 {[%clk 0:02:08]}  Ra3 {[%clk 0:01:40]} 26. Bf2 {[%clk 0:01:57]}  dxc5 {[%clk 0:01:38]} 27. bxc5 {[%clk 0:01:57]}  Na4 {[%clk 0:01:37]} 28. Rxb7 {[%clk 0:01:57]}  Nxc5 {[%clk 0:01:29]} 29. Rxc5 {[%clk 0:01:54]}  Rxc5 {[%clk 0:01:30]} 30. Rxd7 {[%clk 0:01:54]}  Ra1 {[%clk 0:01:30]} 31. Nb3 {[%clk 0:01:45]}  Rxf1+ {[%clk 0:01:15]} 32. Kxf1 {[%clk 0:01:46]}  Rb5 {[%clk 0:01:15]} 33. Qd3 {[%clk 0:01:30]}  Qb8 {[%clk 0:01:13]} 34. Nd2 {[%clk 0:01:30]}  Ra5 {[%clk 0:01:05]} 35. Rxe7 {[%clk 0:01:21]}  Ra1+ {[%clk 0:01:05]} 36. Ke2 {[%clk 0:01:20]}  Qf4 {[%clk 0:00:39]} 37. Bd4 {[%clk 0:01:10]}  Qg3 {[%clk 0:00:33]} 38. Bxa1 {[%clk 0:01:06]}  Qxg2+ {[%clk 0:00:32]} 39. Kd1 {[%clk 0:01:06]}  Qg1+ {[%clk 0:00:29]} 40. Qf1 {[%clk 0:01:05]}  Qb6 {[%clk 0:00:19]} 41. Rxf7 {[%clk 0:01:02]}  Kh6 {[%clk 0:00:16]} 42. Bxg7+ {[%clk 0:01:01]}  Kg5 {[%clk 0:00:15]} 43. Qg2+ {[%clk 0:00:57]}  Kh4 {[%clk 0:00:10]} 44. Rf4# {[%clk 0:00:56]} 1-0


[Site "https://www.chess.com"]

[Event "Titled Tuesday Blitz November 29 Late 2022"]
[White "Albornoz Cabrera, Carlos Daniel"]
[Black "Domingo Nunez, Ruben"]
[WhiteFideId "3518736"]
[BlackFideId "22245570"]
[WhiteElo "2497"]
[BlackElo "2406"]
[Result "1-0"]
[Round "06"]
[TimeControl "180+1"]
[Date "2022.11.30"]
[WhiteClock "0:00:22"]
[BlackClock "0:00:04"]

1. d4 {[%clk 0:03:00]}  g6 {[%clk 0:02:59]} 2. c4 {[%clk 0:03:01]}  Bg7 {[%clk 0:02:59]} 3. Nc3 {[%clk 0:03:01]}  d6 {[%clk 0:03:00]} 4. e4 {[%clk 0:03:02]}  Nd7 {[%clk 0:03:01]} 5. Be2 {[%clk 0:03:02]}  e5 {[%clk 0:03:01]} 6. d5 {[%clk 0:03:02]}  a5 {[%clk 0:03:01]} 7. Be3 {[%clk 0:03:01]}  h5 {[%clk 0:03:01]} 8. h4 {[%clk 0:03:01]}  Bh6 {[%clk 0:03:02]} 9. Qd2 {[%clk 0:02:59]}  Bxe3 {[%clk 0:03:02]} 10. Qxe3 {[%clk 0:03:00]}  Nc5 {[%clk 0:03:01]} 11. O-O-O {[%clk 0:02:56]}  Bd7 {[%clk 0:03:01]} 12. Nh3 {[%clk 0:02:55]}  Qxh4 {[%clk 0:02:59]} 13. f4 {[%clk 0:02:45]}  exf4 {[%clk 0:02:21]} 14. Nxf4 {[%clk 0:02:45]}  Qg5 {[%clk 0:02:22]} 15. Rhf1 {[%clk 0:02:36]}  Nh6 {[%clk 0:01:56]} 16. Kb1 {[%clk 0:02:29]}  O-O {[%clk 0:01:54]} 17. Qd2 {[%clk 0:02:07]}  Rae8 {[%clk 0:01:54]} 18. Nxh5 {[%clk 0:02:05]}  Qxd2 {[%clk 0:01:23]} 19. Nf6+ {[%clk 0:02:06]}  Kh8 {[%clk 0:01:23]} 20. Rxd2 {[%clk 0:02:06]}  Re5 {[%clk 0:01:24]} 21. b3 {[%clk 0:01:51]}  Ng8 {[%clk 0:01:19]} 22. Nxd7 {[%clk 0:01:43]}  Nxd7 {[%clk 0:01:20]} 23. Nb5 {[%clk 0:01:43]}  Nc5 {[%clk 0:01:14]} 24. Bd3 {[%clk 0:01:37]}  Re7 {[%clk 0:01:12]} 25. e5 {[%clk 0:01:27]}  dxe5 {[%clk 0:01:05]} 26. Bxg6 {[%clk 0:01:26]}  e4 {[%clk 0:01:01]} 27. Nd4 {[%clk 0:01:22]}  Nh6 {[%clk 0:00:52]} 28. Bf5 {[%clk 0:01:08]}  Kg7 {[%clk 0:00:18]} 29. g4 {[%clk 0:01:02]}  Re5 {[%clk 0:00:11]} 30. Rh2 {[%clk 0:01:01]}  e3 {[%clk 0:00:10]} 31. Bc2 {[%clk 0:00:36]}  Rfe8 {[%clk 0:00:09]} 32. Rfh1 {[%clk 0:00:33]}  e2 {[%clk 0:00:09]} 33. Re1 {[%clk 0:00:23]}  Nxg4 {[%clk 0:00:04]} 34. Rg2 {[%clk 0:00:24]}  Rg5 {[%clk 0:00:04]} 35. Nf3 {[%clk 0:00:22]} 1-0


[Site "https://www.chess.com"]

[Event "Titled Tuesday Blitz November 29 Late 2022"]
[White "Aldokhin, Ivan"]
[Black "Bilan, Danila"]
[WhiteFideId "24115720"]
[BlackFideId "24161918"]
[WhiteElo "2313"]
[BlackElo "2173"]
[Result "1-0"]
[Round "06"]
[TimeControl "180+1"]
[Date "2022.11.30"]
[WhiteClock "0:00:31"]
[BlackClock "0:00:02"]

1. e4 {[%clk 0:03:00]}  c6 {[%clk 0:02:59]} 2. Nc3 {[%clk 0:03:00]}  d5 {[%clk 0:03:00]} 3. d4 {[%clk 0:03:00]}  b5 {[%clk 0:02:54]} 4. a3 {[%clk 0:02:50]}  e6 {[%clk 0:02:52]} 5. e5 {[%clk 0:02:37]}  b4 {[%clk 0:02:50]} 6. axb4 {[%clk 0:02:36]}  Bxb4 {[%clk 0:02:51]} 7. Qg4 {[%clk 0:02:34]}  Kf8 {[%clk 0:02:28]} 8. Nf3 {[%clk 0:02:33]}  Ne7 {[%clk 0:02:25]} 9. Bd3 {[%clk 0:02:31]}  a5 {[%clk 0:02:15]} 10. O-O {[%clk 0:02:29]}  Ba6 {[%clk 0:02:14]} 11. Bxa6 {[%clk 0:02:20]}  Nxa6 {[%clk 0:02:10]} 12. Na2 {[%clk 0:02:16]}  Nf5 {[%clk 0:01:50]} 13. Nxb4 {[%clk 0:02:12]}  Nxb4 {[%clk 0:01:47]} 14. Qf4 {[%clk 0:01:37]}  Nxc2 {[%clk 0:01:27]} 15. Ra4 {[%clk 0:01:33]}  Nb4 {[%clk 0:01:18]} 16. g4 {[%clk 0:01:04]}  Nh4 {[%clk 0:00:58]} 17. Ng5 {[%clk 0:00:56]}  Qe7 {[%clk 0:00:55]} 18. Bd2 {[%clk 0:00:43]}  Rb8 {[%clk 0:00:18]} 19. Qg3 {[%clk 0:00:38]}  Ng6 {[%clk 0:00:14]} 20. f4 {[%clk 0:00:38]}  h6 {[%clk 0:00:07]} 21. f5 {[%clk 0:00:39]}  Nxe5 {[%clk 0:00:02]} 22. Qxe5 {[%clk 0:00:35]}  hxg5 {[%clk 0:00:03]} 23. Qxb8+ {[%clk 0:00:34]}  Qe8 {[%clk 0:00:03]} 24. Rxb4 {[%clk 0:00:31]}  axb4 {[%clk 0:00:02]} 1-0


[Site "https://www.chess.com"]

[Event "Titled Tuesday Blitz November 29 Late 2022"]
[White "Arbunic Castro, Giovanna"]
[Black "Liu, Kelsey"]
[WhiteFideId "3400549"]
[BlackFideId "30944481"]
[WhiteElo "1941"]
[BlackElo "2273"]
[Result "0-1"]
[Round "06"]
[TimeControl "180+1"]
[Date "2022.11.30"]
[WhiteClock "0:00:01"]
[BlackClock "0:00:03"]

1. e4 {[%clk 0:02:58]}  c5 {[%clk 0:02:59]} 2. g3 {[%clk 0:02:56]}  d5 {[%clk 0:02:58]} 3. exd5 {[%clk 0:02:55]}  Qxd5 {[%clk 0:02:59]} 4. Nf3 {[%clk 0:02:55]}  Nc6 {[%clk 0:02:57]} 5. Bg2 {[%clk 0:02:54]}  Bg4 {[%clk 0:02:57]} 6. O-O {[%clk 0:02:52]}  Nf6 {[%clk 0:02:51]} 7. h3 {[%clk 0:02:51]}  Bh5 {[%clk 0:02:49]} 8. g4 {[%clk 0:02:50]}  Bg6 {[%clk 0:02:49]} 9. Nc3 {[%clk 0:02:49]}  Qd7 {[%clk 0:02:48]} 10. d3 {[%clk 0:02:48]}  e6 {[%clk 0:02:48]} 11. Re1 {[%clk 0:02:43]}  Bd6 {[%clk 0:02:48]} 12. Nb5 {[%clk 0:02:36]}  Bb8 {[%clk 0:02:47]} 13. d4 {[%clk 0:02:25]}  a6 {[%clk 0:02:40]} 14. Na3 {[%clk 0:02:12]}  cxd4 {[%clk 0:02:39]} 15. Nc4 {[%clk 0:02:11]}  Bc7 {[%clk 0:02:28]} 16. b3 {[%clk 0:01:50]}  O-O {[%clk 0:02:00]} 17. Ba3 {[%clk 0:01:47]}  Rfd8 {[%clk 0:01:58]} 18. Bc5 {[%clk 0:01:43]}  Qd5 {[%clk 0:01:05]} 19. Bb6 {[%clk 0:01:30]}  Qd7 {[%clk 0:00:52]} 20. a4 {[%clk 0:01:16]}  Rab8 {[%clk 0:00:33]} 21. a5 {[%clk 0:01:14]}  Bxb6 {[%clk 0:00:33]} 22. Nxb6 {[%clk 0:01:12]}  Qc7 {[%clk 0:00:34]} 23. Nc4 {[%clk 0:00:55]}  Ne4 {[%clk 0:00:30]} 24. Nh4 {[%clk 0:00:42]}  Nc3 {[%clk 0:00:29]} 25. Qd2 {[%clk 0:00:33]}  f6 {[%clk 0:00:18]} 26. Nxg6 {[%clk 0:00:30]}  hxg6 {[%clk 0:00:19]} 27. Rxe6 {[%clk 0:00:30]}  Re8 {[%clk 0:00:14]} 28. Rae1 {[%clk 0:00:28]}  Kf7 {[%clk 0:00:13]} 29. Rxe8 {[%clk 0:00:16]}  Rxe8 {[%clk 0:00:13]} 30. Rxe8 {[%clk 0:00:16]}  Kxe8 {[%clk 0:00:14]} 31. Qe1+ {[%clk 0:00:15]}  Kf7 {[%clk 0:00:13]} 32. g5 {[%clk 0:00:12]}  Nxa5 {[%clk 0:00:12]} 33. Nxa5 {[%clk 0:00:11]}  Qxa5 {[%clk 0:00:13]} 34. Qd2 {[%clk 0:00:10]}  Qe5 {[%clk 0:00:10]} 35. Kf1 {[%clk 0:00:08]}  fxg5 {[%clk 0:00:08]} 36. Bxb7 {[%clk 0:00:06]}  Qf5 {[%clk 0:00:05]} 37. Bxa6 {[%clk 0:00:04]}  Qxh3+ {[%clk 0:00:05]} 38. Kg1 {[%clk 0:00:03]}  Qg4+ {[%clk 0:00:05]} 39. Kh1 {[%clk 0:00:01]}  Qf3+ {[%clk 0:00:04]} 40. Kg1 {[%clk 0:00:01]}  Qg4+ {[%clk 0:00:03]} 0-1


[Site "https://www.chess.com"]

[Event "Titled Tuesday Blitz November 29 Late 2022"]
[White "Arkell, Keith C"]
[Black "Bordi, Kevin"]
[WhiteFideId "400270"]
[BlackFideId "621862"]
[WhiteElo "2342"]
[BlackElo "2812"]
[Result "1-0"]
[Round "06"]
[TimeControl "180+1"]
[Date "2022.11.30"]
[WhiteClock "0:01:48"]
[BlackClock "0:00:29"]

1. d4 {[%clk 0:03:00]}  d5 {[%clk 0:03:00]} 2. Nf3 {[%clk 0:03:00]}  Nf6 {[%clk 0:03:00]} 3. c4 {[%clk 0:03:01]}  c6 {[%clk 0:03:01]} 4. Qc2 {[%clk 0:03:00]}  g6 {[%clk 0:03:01]} 5. Bg5 {[%clk 0:02:59]}  Bf5 {[%clk 0:03:01]} 6. Qb3 {[%clk 0:02:59]}  Ne4 {[%clk 0:03:01]} 7. Qxb7 {[%clk 0:02:58]}  Nd7 {[%clk 0:03:01]} 8. Qxc6 {[%clk 0:02:57]}  Nxg5 {[%clk 0:02:56]} 9. Nxg5 {[%clk 0:02:56]}  e6 {[%clk 0:02:56]} 10. Nf3 {[%clk 0:02:54]}  Rc8 {[%clk 0:02:51]} 11. Qa6 {[%clk 0:02:54]}  Rxc4 {[%clk 0:02:49]} 12. Nc3 {[%clk 0:02:54]}  Bb4 {[%clk 0:02:47]} 13. Rc1 {[%clk 0:02:53]}  O-O {[%clk 0:02:32]} 14. e3 {[%clk 0:02:51]}  Rc7 {[%clk 0:02:31]} 15. Be2 {[%clk 0:02:50]}  g5 {[%clk 0:02:25]} 16. O-O {[%clk 0:02:49]}  g4 {[%clk 0:02:25]} 17. Ne1 {[%clk 0:02:43]}  h5 {[%clk 0:02:25]} 18. Nd3 {[%clk 0:02:43]}  Be7 {[%clk 0:02:19]} 19. Nf4 {[%clk 0:02:43]}  Nf6 {[%clk 0:02:18]} 20. Bd3 {[%clk 0:02:40]}  Bxd3 {[%clk 0:02:13]} 21. Qxd3 {[%clk 0:02:40]}  Qb8 {[%clk 0:02:08]} 22. Rc2 {[%clk 0:02:35]}  Rfc8 {[%clk 0:02:08]} 23. Rfc1 {[%clk 0:02:35]}  Bd6 {[%clk 0:02:07]} 24. g3 {[%clk 0:02:35]}  h4 {[%clk 0:02:01]} 25. Nxe6 {[%clk 0:02:35]}  hxg3 {[%clk 0:01:51]} 26. hxg3 {[%clk 0:02:31]}  fxe6 {[%clk 0:01:03]} 27. Qg6+ {[%clk 0:02:30]}  Rg7 {[%clk 0:01:03]} 28. Qxf6 {[%clk 0:02:31]}  Re8 {[%clk 0:01:00]} 29. Ne2 {[%clk 0:02:22]}  Qb7 {[%clk 0:00:54]} 30. Nf4 {[%clk 0:02:17]}  Bxf4 {[%clk 0:00:54]} 31. exf4 {[%clk 0:02:15]}  Rh7 {[%clk 0:00:46]} 32. Qg6+ {[%clk 0:02:11]}  Kf8 {[%clk 0:00:46]} 33. Qxg4 {[%clk 0:02:08]}  Qf7 {[%clk 0:00:36]} 34. Kg2 {[%clk 0:02:05]}  Rg7 {[%clk 0:00:36]} 35. Qf3 {[%clk 0:02:02]}  Qf5 {[%clk 0:00:33]} 36. Rc7 {[%clk 0:02:01]}  Ree7 {[%clk 0:00:30]} 37. Rxe7 {[%clk 0:02:00]}  Rxe7 {[%clk 0:00:31]} 38. Rc8+ {[%clk 0:02:00]}  Kg7 {[%clk 0:00:31]} 39. Rc3 {[%clk 0:01:54]}  Kg6 {[%clk 0:00:30]} 40. Qd3 {[%clk 0:01:54]}  Rh7 {[%clk 0:00:28]} 41. Qxf5+ {[%clk 0:01:54]}  Kxf5 {[%clk 0:00:29]} 42. Kf3 {[%clk 0:01:54]}  Rh1 {[%clk 0:00:29]} 43. g4+ {[%clk 0:01:51]}  Kf6 {[%clk 0:00:29]} 44. Rc6 {[%clk 0:01:51]}  Rd1 {[%clk 0:00:29]} 45. f5 {[%clk 0:01:50]}  Rd3+ {[%clk 0:00:28]} 46. Kg2 {[%clk 0:01:50]}  Rxd4 {[%clk 0:00:28]} 47. Rxe6+ {[%clk 0:01:51]}  Kg5 {[%clk 0:00:29]} 48. Rg6+ {[%clk 0:01:48]}  Kf4 {[%clk 0:00:29]} 49. f6 {[%clk 0:01:48]} 1-0


[Site "https://www.chess.com"]

[Event "Titled Tuesday Blitz November 29 Late 2022"]
[White "Arnold, Ken"]
[Black "Calcada, Lucas Galvan"]
[WhiteFideId "2056836"]
[BlackFideId "22746099"]
[WhiteElo "2369"]
[BlackElo "1523"]
[Result "1-0"]
[Round "06"]
[TimeControl "180+1"]
[Date "2022.11.30"]
[WhiteClock "0:00:28"]
[BlackClock "0:00:03"]

1. d4 {[%clk 0:03:00]}  Nf6 {[%clk 0:02:59]} 2. c4 {[%clk 0:02:59]}  g6 {[%clk 0:02:58]} 3. Nc3 {[%clk 0:02:59]}  Bg7 {[%clk 0:02:58]} 4. Nf3 {[%clk 0:02:59]}  d6 {[%clk 0:02:58]} 5. e3 {[%clk 0:03:00]}  O-O {[%clk 0:02:58]} 6. Be2 {[%clk 0:03:00]}  c5 {[%clk 0:02:59]} 7. O-O {[%clk 0:03:00]}  Nc6 {[%clk 0:02:57]} 8. d5 {[%clk 0:03:00]}  Nb8 {[%clk 0:02:57]} 9. Qc2 {[%clk 0:02:59]}  e6 {[%clk 0:02:57]} 10. e4 {[%clk 0:02:59]}  exd5 {[%clk 0:02:58]} 11. Nxd5 {[%clk 0:02:57]}  Nxd5 {[%clk 0:02:56]} 12. cxd5 {[%clk 0:02:55]}  a6 {[%clk 0:02:56]} 13. Bf4 {[%clk 0:02:54]}  Qc7 {[%clk 0:02:54]} 14. Rfd1 {[%clk 0:02:52]}  b5 {[%clk 0:02:54]} 15. a4 {[%clk 0:02:49]}  b4 {[%clk 0:02:51]} 16. Rac1 {[%clk 0:02:47]}  Bg4 {[%clk 0:02:48]} 17. h3 {[%clk 0:02:44]}  Bxf3 {[%clk 0:02:48]} 18. Bxf3 {[%clk 0:02:43]}  Nd7 {[%clk 0:02:49]} 19. b3 {[%clk 0:02:36]}  Ne5 {[%clk 0:02:47]} 20. Be2 {[%clk 0:02:35]}  Rfe8 {[%clk 0:02:39]} 21. Bg3 {[%clk 0:02:34]}  Qb7 {[%clk 0:02:26]} 22. Re1 {[%clk 0:02:31]}  Rac8 {[%clk 0:02:15]} 23. f4 {[%clk 0:02:30]}  Nd7 {[%clk 0:02:14]} 24. Bc4 {[%clk 0:02:29]}  Bd4+ {[%clk 0:02:10]} 25. Kh2 {[%clk 0:02:27]}  Nf6 {[%clk 0:02:05]} 26. Re2 {[%clk 0:02:23]}  Nh5 {[%clk 0:01:58]} 27. Qd3 {[%clk 0:02:17]}  Ra8 {[%clk 0:01:45]} 28. Rf1 {[%clk 0:02:14]}  Nxg3 {[%clk 0:01:37]} 29. Qxg3 {[%clk 0:02:12]}  a5 {[%clk 0:01:30]} 30. Kh1 {[%clk 0:02:11]}  Re7 {[%clk 0:01:28]} 31. e5 {[%clk 0:02:01]}  Qc7 {[%clk 0:01:21]} 32. e6 {[%clk 0:02:00]}  f5 {[%clk 0:01:18]} 33. Qd3 {[%clk 0:01:55]}  Rf8 {[%clk 0:01:14]} 34. g3 {[%clk 0:01:54]}  Bf6 {[%clk 0:01:08]} 35. Rg2 {[%clk 0:01:51]}  Bd4 {[%clk 0:01:01]} 36. Rf3 {[%clk 0:01:51]}  Rg7 {[%clk 0:00:54]} 37. g4 {[%clk 0:01:38]}  Qe7 {[%clk 0:00:52]} 38. g5 {[%clk 0:01:26]}  Qc7 {[%clk 0:00:48]} 39. h4 {[%clk 0:01:25]}  Re7 {[%clk 0:00:47]} 40. Rh3 {[%clk 0:01:24]}  Kg7 {[%clk 0:00:44]} 41. Rgh2 {[%clk 0:01:22]}  h5 {[%clk 0:00:41]} 42. gxh6+ {[%clk 0:01:22]}  Kxh6 {[%clk 0:00:42]} 43. Qg3 {[%clk 0:01:19]}  Bf6 {[%clk 0:00:40]} 44. h5 {[%clk 0:01:12]}  g5 {[%clk 0:00:40]} 45. fxg5+ {[%clk 0:01:07]}  Bxg5 {[%clk 0:00:41]} 46. Qf3 {[%clk 0:01:03]}  Rg7 {[%clk 0:00:37]} 47. Rg2 {[%clk 0:01:03]}  Qe7 {[%clk 0:00:32]} 48. Rhg3 {[%clk 0:01:01]}  f4 {[%clk 0:00:29]} 49. Rg4 {[%clk 0:00:58]}  Rfg8 {[%clk 0:00:27]} 50. Qe4 {[%clk 0:00:55]}  Qf6 {[%clk 0:00:25]} 51. Be2 {[%clk 0:00:51]}  Qe5 {[%clk 0:00:19]} 52. Qxe5 {[%clk 0:00:50]}  dxe5 {[%clk 0:00:19]} 53. Bf3 {[%clk 0:00:42]}  c4 {[%clk 0:00:20]} 54. bxc4 {[%clk 0:00:41]}  b3 {[%clk 0:00:20]} 55. d6 {[%clk 0:00:39]}  Rb8 {[%clk 0:00:19]} 56. e7 {[%clk 0:00:35]}  b2 {[%clk 0:00:17]} 57. Rxb2 {[%clk 0:00:35]}  Bxe7 {[%clk 0:00:12]} 58. Rxb8 {[%clk 0:00:30]}  Bxd6 {[%clk 0:00:11]} 59. Rxg7 {[%clk 0:00:29]}  Bxb8 {[%clk 0:00:10]} 60. Rg6+ {[%clk 0:00:28]}  Kh7 {[%clk 0:00:09]} 61. Re6 {[%clk 0:00:28]}  e4 {[%clk 0:00:03]} 62. Bxe4+ {[%clk 0:00:28]} 1-0


[Site "https://www.chess.com"]

[Event "Titled Tuesday Blitz November 29 Late 2022"]
[White "Barbot, Pierre"]
[Black "Rose, Felix"]
[WhiteFideId "663727"]
[BlackFideId "5105722"]
[WhiteElo "2439"]
[BlackElo "2039"]
[Result "1-0"]
[Round "06"]
[TimeControl "180+1"]
[Date "2022.11.30"]
[WhiteClock "0:00:20"]
[BlackClock "0:00:02"]

1. d4 {[%clk 0:03:00]}  d5 {[%clk 0:02:59]} 2. Nf3 {[%clk 0:03:00]}  Nf6 {[%clk 0:02:59]} 3. Bf4 {[%clk 0:03:00]}  e6 {[%clk 0:02:58]} 4. e3 {[%clk 0:02:59]}  Bd6 {[%clk 0:02:59]} 5. Bg3 {[%clk 0:02:56]}  O-O {[%clk 0:02:59]} 6. Bd3 {[%clk 0:02:53]}  b6 {[%clk 0:02:58]} 7. Nbd2 {[%clk 0:02:48]}  c5 {[%clk 0:02:59]} 8. c3 {[%clk 0:02:48]}  Ba6 {[%clk 0:02:58]} 9. Bxa6 {[%clk 0:02:48]}  Nxa6 {[%clk 0:02:59]} 10. Qe2 {[%clk 0:02:48]}  Nb8 {[%clk 0:02:59]} 11. e4 {[%clk 0:02:48]}  Be7 {[%clk 0:02:56]} 12. e5 {[%clk 0:02:36]}  Nfd7 {[%clk 0:02:55]} 13. h4 {[%clk 0:02:34]}  Nc6 {[%clk 0:02:54]} 14. O-O {[%clk 0:02:30]}  b5 {[%clk 0:02:48]} 15. Qe3 {[%clk 0:02:19]}  b4 {[%clk 0:02:47]} 16. Ng5 {[%clk 0:02:15]}  h6 {[%clk 0:02:11]} 17. Ngf3 {[%clk 0:02:10]}  Qa5 {[%clk 0:02:03]} 18. Bf4 {[%clk 0:02:06]}  bxc3 {[%clk 0:01:43]} 19. bxc3 {[%clk 0:02:05]}  cxd4 {[%clk 0:01:40]} 20. cxd4 {[%clk 0:02:05]}  Qa3 {[%clk 0:01:35]} 21. Nb3 {[%clk 0:01:29]}  Rfc8 {[%clk 0:01:11]} 22. Rfc1 {[%clk 0:01:17]}  Bf8 {[%clk 0:01:07]} 23. Rc3 {[%clk 0:01:14]}  Qb2 {[%clk 0:00:56]} 24. Rac1 {[%clk 0:01:12]}  Ne7 {[%clk 0:00:52]} 25. Nc5 {[%clk 0:01:04]}  Nxc5 {[%clk 0:00:34]} 26. dxc5 {[%clk 0:01:05]}  Nf5 {[%clk 0:00:33]} 27. Qd3 {[%clk 0:00:57]}  Qxa2 {[%clk 0:00:20]} 28. g4 {[%clk 0:00:56]}  Ne7 {[%clk 0:00:10]} 29. c6 {[%clk 0:00:56]}  d4 {[%clk 0:00:08]} 30. Qxd4 {[%clk 0:00:53]}  Nd5 {[%clk 0:00:07]} 31. R3c2 {[%clk 0:00:46]}  Qa3 {[%clk 0:00:07]} 32. Nd2 {[%clk 0:00:37]}  Nxf4 {[%clk 0:00:05]} 33. Qxf4 {[%clk 0:00:38]}  Qh3 {[%clk 0:00:04]} 34. h5 {[%clk 0:00:37]}  Be7 {[%clk 0:00:04]} 35. Ne4 {[%clk 0:00:31]}  Qb3 {[%clk 0:00:02]} 36. c7 {[%clk 0:00:29]}  Qd5 {[%clk 0:00:02]} 37. Nd6 {[%clk 0:00:27]}  Bxd6 {[%clk 0:00:01]} 38. exd6 {[%clk 0:00:28]}  e5 {[%clk 0:00:02]} 39. Qb4 {[%clk 0:00:20]} 1-0


[Site "https://www.chess.com"]

[Event "Titled Tuesday Blitz November 29 Late 2022"]
[White "Barria Zuniga, Daniel"]
[Black "Vasques, Antonio Pedro Freixial"]
[WhiteFideId "3400816"]
[BlackFideId "1908332"]
[WhiteElo "2414"]
[BlackElo "2243"]
[Result "1-0"]
[Round "06"]
[TimeControl "180+1"]
[Date "2022.11.30"]
[WhiteClock "0:01:14"]
[BlackClock "0:00:08"]

1. d4 {[%clk 0:02:35]}  Nf6 {[%clk 0:02:56]} 2. c4 {[%clk 0:02:35]}  g6 {[%clk 0:02:55]} 3. Nc3 {[%clk 0:02:34]}  Bg7 {[%clk 0:02:56]} 4. e4 {[%clk 0:02:34]}  d6 {[%clk 0:02:56]} 5. Be2 {[%clk 0:02:34]}  O-O {[%clk 0:02:53]} 6. Nf3 {[%clk 0:02:34]}  Na6 {[%clk 0:02:53]} 7. Nd2 {[%clk 0:02:30]}  e5 {[%clk 0:02:52]} 8. d5 {[%clk 0:02:30]}  c6 {[%clk 0:02:46]} 9. O-O {[%clk 0:02:29]}  Bd7 {[%clk 0:02:42]} 10. a3 {[%clk 0:02:28]}  c5 {[%clk 0:02:35]} 11. b4 {[%clk 0:02:19]}  b6 {[%clk 0:02:35]} 12. b5 {[%clk 0:02:14]}  Nc7 {[%clk 0:02:33]} 13. a4 {[%clk 0:02:15]}  Bh6 {[%clk 0:01:49]} 14. a5 {[%clk 0:02:12]}  Nfe8 {[%clk 0:01:46]} 15. Nb3 {[%clk 0:01:59]}  Bxc1 {[%clk 0:01:43]} 16. Qxc1 {[%clk 0:02:00]}  f5 {[%clk 0:01:43]} 17. f4 {[%clk 0:01:56]}  Qf6 {[%clk 0:01:31]} 18. exf5 {[%clk 0:01:44]}  Bxf5 {[%clk 0:01:29]} 19. Qd2 {[%clk 0:01:41]}  exf4 {[%clk 0:00:37]} 20. Rxf4 {[%clk 0:01:37]}  Qg7 {[%clk 0:00:31]} 21. Raf1 {[%clk 0:01:34]}  Nf6 {[%clk 0:00:31]} 22. g4 {[%clk 0:01:29]}  Bd7 {[%clk 0:00:29]} 23. g5 {[%clk 0:01:22]}  Nh5 {[%clk 0:00:26]} 24. Bxh5 {[%clk 0:01:22]}  gxh5 {[%clk 0:00:27]} 25. Ne4 {[%clk 0:01:20]}  Rxf4 {[%clk 0:00:20]} 26. Qxf4 {[%clk 0:01:21]}  Rf8 {[%clk 0:00:09]} 27. Qxf8+ {[%clk 0:01:20]}  Qxf8 {[%clk 0:00:08]} 28. Rxf8+ {[%clk 0:01:21]}  Kxf8 {[%clk 0:00:09]} 29. Nxd6 {[%clk 0:01:21]}  Bg4 {[%clk 0:00:08]} 30. axb6 {[%clk 0:01:17]}  axb6 {[%clk 0:00:09]} 31. Kf2 {[%clk 0:01:17]}  Bd1 {[%clk 0:00:09]} 32. Nd2 {[%clk 0:01:15]}  Bc2 {[%clk 0:00:09]} 33. Nc8 {[%clk 0:01:15]}  Ne8 {[%clk 0:00:08]} 34. Nxb6 {[%clk 0:01:14]}  Nd6 {[%clk 0:00:09]} 35. Nd7+ {[%clk 0:01:14]}  Ke7 {[%clk 0:00:09]} 36. Nxc5 {[%clk 0:01:14]}  h4 {[%clk 0:00:08]} 1-0


[Site "https://www.chess.com"]